[Event "Romanian Amateur Championship 2024"]
[Site "Eforie Nord"]
[Date "2024.02.26"]
[Round "1.1"]
[White "Pali, Adrian"]
[Black "Negotei, Alin-Adrian"]
[Result "1/2-1/2"]
[ECO "B14"]
[WhiteElo "2186"]
[BlackElo "1481"]
[Annotator "RC"]
[PlyCount "103"]
[EventDate "2024.02.26"]
[EventType "swiss"]
[EventCountry "ROU"]
[SourceTitle "playchess.com"]
[Source "ChessBase"]
[SourceQuality "1"]
[TimeControl "3600+30"]

1. e4 {[%emt 0:00:04]} c6 {[%emt 0:01:19]} 2. c4 {[%emt 0:01:49]} d5 {[%emt 0:00:48]} 3. cxd5 {[%emt 0:00:15]} cxd5 {[%emt 0:00:01]} 4. exd5 {[%emt 0:02:12]} Nf6 {[%emt 0:00:39]} 5. Bc4 {[%emt 0:08:48]} g6 {[%emt 0:10:32]} 6. Nc3 {[%emt 0:01:29]} Bg7 {[%emt 0:01:11]} 7. Nf3 {[%emt 0:02:53]} O-O {[%emt 0:00:29]} 8. O-O {[%emt 0:00:16]} Nbd7 {[%emt 0:00:45]} 9. d4 {[%emt 0:06:19]} Nb6 {[%emt 0:00:30]} 10. Qb3 {[%emt 0:07:54]} Bf5 {[%emt 0:03:42]} 11. Re1 {[%emt 0:04:56]} Bc2 {[%emt 0:06:53]} 12. Qxc2 {[%emt 0:03:37]} Nxc4 {[%emt 0:00:03]} 13. Qe2 {[%emt 0:01:29]} Rc8 {[%emt 0:12:05]} 14. Qxe7 {[%emt 0:01:22]} Qb6 {[%emt 0:01:42]} 15. Qe2 {[%emt 0:11:06]} Rfe8 {[%emt 0:04:47]} 16. Qc2 {[%emt 0:02:02]} Rxe1+ {[%emt 0:02:00]} 17. Nxe1 {[%emt 0:00:00]} Qxd4 {[%emt 0:00:01]} 18. Nf3 {[%emt 0:00:18]} Qc5 {[%emt 0:05:13]} 19. Bg5 {[%emt 0:01:29]} Nxd5 {[%emt 0:01:40]} 20. Nxd5 {[%emt 0:02:25]} Qxd5 {[%emt 0:00:06]} 21. Rd1 {[%emt 0:00:03]} Qe6 {[%emt 0:03:09]} 22. b3 {[%emt 0:02:01]} Ne5 {[%emt 0:03:44]} 23. Qe4 {[%emt 0:00:38]} Nxf3+ {[%emt 0:00:54]} 24. Qxf3 {[%emt 0:00:02]} h6 {[%emt 0:01:03]} 25. Be3 {[%emt 0:00:28]} Qe7 {[%emt 0:02:49]} 26. g3 {[%emt 0:09:35]} a6 {[%emt 0:07:25]} 27. Qg4 {[%emt 0:00:00]} Rd8 {[%emt 0:00:00]} 28. Rc1 {[%emt 0:00:00]} Kh7 {[%emt 0:00:00]} 29. Qf4 {[%emt 0:00:00]} Rd7 {[%emt 0:00:00]} 30. Rc8 {[%emt 0:00:00]} Qf6 {[%emt 0:00:00]} 31. Qg4 {[%emt 0:00:00]} Rd8 {[%emt 0:00:00]} 32. Rxd8 {[%emt 0:00:00]} Qxd8 {[%emt 0:00:00]} 33. Qf3 {[%emt 0:00:00]} Qe7 {[%emt 0:00:00]} 34. Qd5 {[%emt 0:00:00]} b5 {[%emt 0:00:00]} 35. Qc6 {[%emt 0:00:00]} Qe6 {[%emt 0:00:00]} 36. Qb7 {[%emt 0:00:00]} Bf6 {[%emt 0:00:39]} 37. Bb6 {[%emt 0:00:14]} h5 {[%emt 0:00:42]} 38. Kg2 {[%emt 0:00:38]} Bc3 {[%emt 0:00:42]} 39. Be3 {[%emt 0:00:17]} Kg7 {[%emt 0:00:28]} 40. h3 {[%emt 0:00:18]} Kh7 {[%emt 0:00:25]} 41. Qf3 {[%emt 0:00:07]} Qf6 {[%emt 0:00:21]} 42. Qd5 {[%emt 0:00:10]} Qe6 {[%emt 0:00:04]} 43. Qxe6 {[%emt 0:00:18]} fxe6 {[%emt 0:00:01]} 44. Kf3 {[%emt 0:00:00]} Kg7 {[%emt 0:00:01]} 45. Ke4 {[%emt 0:00:10]} Kf6 {[%emt 0:00:18]} 46. g4 {[%emt 0:00:15]} hxg4 {[%emt 0:00:14]} 47. hxg4 {[%emt 0:00:00]} Ke7 {[%emt 0:02:08]} 48. Bc5+ {[%emt 0:01:33]} Kd7 {[%emt 0:00:23]} 49. Kf4 {[%emt 0:01:26]} Bf6 {[%emt 0:00:06]} 50. Ke4 {[%emt 0:00:45]} Bc3 {[%emt 0:00:44]} 51. f4 {[%emt 0:00:31]} Bg7 {[%emt 0:01:15]} 52. Be3 {[%emt 0:01:55]} 1/2-1/2

[Event "Romanian Amateur Championship 2024"]
[Site "Eforie Nord"]
[Date "2024.02.26"]
[Round "1.2"]
[White "Cimpean, Dragos-Lucian"]
[Black "Zubcu, Vlad-George"]
[Result "0-1"]
[ECO "B23"]
[WhiteElo "1465"]
[BlackElo "2166"]
[Annotator "RC"]
[PlyCount "104"]
[EventDate "2024.02.26"]
[EventType "swiss"]
[EventCountry "ROU"]
[SourceTitle "playchess.com"]
[Source "ChessBase"]
[SourceQuality "1"]
[TimeControl "3600+30"]

1. e4 {[%emt 0:00:03]} c5 {[%emt 0:00:04]} 2. Nc3 {[%emt 0:00:21]} e6 {[%emt 0:00:15]} 3. f4 {[%emt 0:00:52]} a6 {[%emt 0:00:37]} 4. a4 {[%emt 0:00:20]} Nc6 {[%emt 0:00:34]} 5. Nf3 {[%emt 0:00:45]} d5 {[%emt 0:00:45]} 6. d3 {[%emt 0:02:32]} g6 {[%emt 0:02:16]} 7. e5 {[%emt 0:01:03]} Nge7 {[%emt 0:01:49]} 8. Be2 {[%emt 0:01:23]} Bg7 {[%emt 0:00:41]} 9. O-O {[%emt 0:00:38]} Rb8 {[%emt 0:00:16]} 10. Qe1 {[%emt 0:03:30]} b5 {[%emt 0:01:07]} 11. g4 {[%emt 0:05:16]} Qb6 {[%emt 0:11:44]} 12. Qf2 {[%emt 0:10:44]} Bd7 {[%emt 0:04:15]} 13. h4 {[%emt 0:07:17]} h5 {[%emt 0:02:13]} 14. g5 {[%emt 0:05:48]} Nf5 {[%emt 0:02:30]} 15. Bd2 {[%emt 0:00:40]} O-O {[%emt 0:05:22]} 16. b3 {[%emt 0:04:02]} Rfc8 {[%emt 0:00:43]} 17. Rfc1 {[%emt 0:02:55]} Bf8 {[%emt 0:00:51]} 18. Nd1 {[%emt 0:02:07]} Qd8 {[%emt 0:10:16]} 19. Ne3 {[%emt 0:01:05]} Nce7 {[%emt 0:02:13]} 20. axb5 {[%emt 0:01:25]} axb5 {[%emt 0:00:01]} 21. Ba5 {[%emt 0:01:27]} Qe8 {[%emt 0:00:10]} 22. Nxf5 {[%emt 0:00:41]} Nxf5 {[%emt 0:00:01]} 23. Bd2 {[%emt 0:01:09]} Bc6 {[%emt 0:01:20]} 24. Kh2 {[%emt 0:00:30]} d4 {[%emt 0:01:43]} 25. Kh3 {[%emt 0:00:48]} Bd5 {[%emt 0:00:35]} 26. Nh2 {[%emt 0:01:02]} c4 {[%emt 0:00:36]} 27. bxc4 {[%emt 0:01:21]} bxc4 {[%emt 0:00:01]} 28. Nf1 {[%emt 0:02:07]} Rb2 {[%emt 0:06:08]} 29. Ng3 {[%emt 0:01:16]} Nxg3 {[%emt 0:00:07]} 30. Kxg3 {[%emt 0:00:26]} Bc5 {[%emt 0:00:35]} 31. Bf3 {[%emt 0:01:57]} Qd7 {[%emt 0:01:38]} 32. Rab1 {[%emt 0:02:55]} Rcb8 {[%emt 0:02:04]} 33. Rxb2 {[%emt 0:00:27]} Rxb2 {[%emt 0:00:02]} 34. Be2 {[%emt 0:01:37]} Qa4 {[%emt 0:02:14]} 35. Bd1 {[%emt 0:02:28]} cxd3 {[%emt 0:00:38]} 36. c4 {[%emt 0:01:35]} Qa2 {[%emt 0:00:34]} 37. cxd5 {[%emt 0:00:36]} Rxd2 {[%emt 0:00:35]} 38. Qf3 {[%emt 0:00:41]} Qxd5 {[%emt 0:01:33]} 39. Qxd5 {[%emt 0:01:51]} exd5 {[%emt 0:10:54]} 40. Bf3 {[%emt 0:02:50]} Rc2 {[%emt 0:00:30]} 41. Rd1 {[%emt 0:00:30]} d2 {[%emt 0:00:00]} 42. Bxd5 {[%emt 0:00:00]} Bb4 {[%emt 0:00:00]} 43. Kf2 {[%emt 0:00:00]} Rc1 {[%emt 0:00:00]} 44. Bf3 {[%emt 0:00:00]} Kf8 {[%emt 0:00:00]} 45. Ke2 {[%emt 0:00:00]} Ke7 {[%emt 0:00:00]} 46. Kd3 {[%emt 0:00:00]} Rc3+ {[%emt 0:00:00]} 47. Ke2 {[%emt 0:00:00]} Ke6 {[%emt 0:00:00]} 48. Bb7 {[%emt 0:01:00]} Kf5 {[%emt 0:00:00]} 49. Rf1 {[%emt 0:00:34]} Rc1 {[%emt 0:00:00]} 50. Bf3 {[%emt 0:01:37]} Kxf4 {[%emt 0:00:00]} 51. Bxh5+ {[%emt 0:00:41]} Rxf1 {[%emt 0:00:00]} 52. Kxf1 {[%emt 0:00:28]} gxh5 {[%emt 0:00:00]} 0-1

[Event "Romanian Amateur Championship 2024"]
[Site "Eforie Nord"]
[Date "2024.02.26"]
[Round "1.3"]
[White "Tudoroiu, Razvan-Catalin"]
[Black "Horvath-Szombathy, Vilmos"]
[Result "1-0"]
[ECO "A48"]
[WhiteElo "2031"]
[BlackElo "1462"]
[Annotator "NA RC"]
[PlyCount "113"]
[EventDate "2024.02.26"]
[EventType "swiss"]
[EventCountry "ROU"]
[SourceTitle "playchess.com"]
[Source "ChessBase"]
[SourceQuality "1"]
[TimeControl "3600+30"]

1. d4 {[%emt 0:00:52]} Nf6 {[%emt 0:00:05]} 2. Bf4 {[%emt 0:00:17]} d6 {[%emt 0:00:07]} 3. e3 {[%emt 0:00:06]} g6 {[%emt 0:00:04]} 4. Be2 {[%emt 0:00:10]} Bg7 {[%emt 0:00:05]} 5. h3 {[%emt 0:00:18]} O-O {[%emt 0:00:08]} 6. Nf3 {[%emt 0:00:04]} Nbd7 {[%emt 0:00:15]} 7. c3 {[%emt 0:00:12]} b6 {[%emt 0:01:24]} 8. Nbd2 {[%emt 0:00:24]} Bb7 {[%emt 0:00:08]} 9. O-O {[%emt 0:00:04]} Re8 {[%emt 0:00:05]} 10. Bh2 {[%emt 0:04:27]} e5 {[%emt 0:00:14]} 11. a4 {[%emt 0:00:39]} e4 {[%emt 0:00:25]} 12. Ne1 {[%emt 0:00:15]} Bh6 {[%emt 0:07:25]} 13. a5 {[%emt 0:01:27]} Qe7 {[%emt 0:03:34]} 14. a6 {[%emt 0:03:18]} Bc8 {[%emt 0:00:06]} 15. Bb5 {[%emt 0:00:07]} Rd8 {[%emt 0:02:19]} 16. Bc6 {[%emt 0:03:52]} Rb8 {[%emt 0:00:06]} 17. Qb1 {[%emt 0:01:58]} Nf8 {[%emt 0:03:29]} 18. Nxe4 {[%emt 0:01:32]} Nxe4 {[%emt 0:01:38]} 19. Qxe4 {[%emt 0:01:32]} Ne6 {[%emt 0:00:09]} 20. Nc2 {[%emt 0:01:47]} Qf6 {[%emt 0:00:19]} 21. Qf3 {[%emt 0:01:45]} Qg7 {[%emt 0:00:32]} 22. Nb4 {[%emt 0:00:37]} Ng5 {[%emt 0:01:47]} 23. Qe2 {[%emt 0:00:14]} Rf8 {[%emt 0:10:48]} 24. Bd5 {[%emt 0:04:08]} Bd7 {[%emt 0:00:14]} 25. Nc6 {[%emt 0:00:45]} Rbe8 {[%emt 0:00:53]} 26. Nxa7 {[%emt 0:01:46]} Qf6 {[%emt 0:00:53]} 27. Nc6 {[%emt 0:01:30]} Nxh3+ {[%emt 0:00:12]} 28. gxh3 {[%emt 0:02:35]} Qg5+ {[%emt 0:00:07]} 29. Bg2 {[%emt 0:00:22]} Bxc6 {[%emt 0:00:05]} 30. Qg4 {[%emt 0:00:05]} Bxg2 {[%emt 0:05:44]} 31. Qxg5 {[%emt 0:01:12]} Bxg5 {[%emt 0:00:06]} 32. Kxg2 {[%emt 0:00:06]} Ra8 {[%emt 0:00:34]} 33. b4 {[%emt 0:01:28]} Bf6 {[%emt 0:03:36]} 34. b5 {[%emt 0:00:44]} Rfe8 {[%emt 0:02:02]} 35. Rfc1 {[%emt 0:00:45]} Kf8 {[%emt 0:00:18]} 36. c4 {[%emt 0:01:58]} Ra7 {[%emt 0:01:52]} 37. Ra2 {[%emt 0:00:52]} Be7 {[%emt 0:00:22]} 38. Kf3 {[%emt 0:04:05]} f5 {[%emt 0:00:41]} 39. Re1 {[%emt 0:04:06]} Bf6 {[%emt 0:02:37]} 40. c5 {[%emt 0:02:00]} dxc5 {[%emt 0:04:45]} 41. dxc5 {[%emt 0:00:10]} Bd4 {[%emt 0:00:10]} 42. exd4 {[%emt 0:02:45]} Rxe1 {[%emt 0:00:08]} 43. Bxc7 {[%emt 0:00:04]} g5 {[%emt 0:14:34]} 44. cxb6 {[%emt 0:01:21]} g4+ {[%emt 0:00:16]} 45. hxg4 {[%emt 0:00:26]} fxg4+ {[%emt 0:00:07]} 46. Kg2 {[%emt 0:24:20]} Ra8 {[%emt 0:01:07]} 47. b7 {[%emt 0:00:00]} Rae8 {[%emt 0:00:02]} 48. b8=Q {[%emt 0:00:00]} h5 {[%emt 0:00:24]} 49. a7 {[%emt 0:00:00]} h4 {[%emt 0:00:18]} 50. Qxe8+ {[%emt 0:00:00]} Kxe8 {[%emt 0:00:05]} 51. a8=Q+ {[%emt 0:00:00]} Kf7 {[%emt 0:00:09]} 52. Qd5+ {[%emt 0:00:00]} Kf8 {[%emt 0:00:18]} 53. Bd6+ {[%emt 0:00:00]} Kg7 {[%emt 0:00:05]} 54. Qg5+ {[%emt 0:00:00]} Kf7 {[%emt 0:00:30]} 55. Qf5+ {[%emt 0:00:00]} Kg7 {[%emt 0:00:30]} 56. Ra7+ {[%emt 0:00:00]} Kg8 {[%emt 0:00:30]} 57. Qf8# {[%emt 0:00:00]} 1-0

[Event "Romanian Amateur Championship 2024"]
[Site "Eforie Nord"]
[Date "2024.02.26"]
[Round "1.4"]
[White "Marius, Andra-Beatrice"]
[Black "Barbu, Simon-Alexandru"]
[Result "0-1"]
[ECO "A48"]
[WhiteElo "1502"]
[BlackElo "2030"]
[Annotator "NA RC"]
[PlyCount "126"]
[EventDate "2024.02.26"]
[EventType "swiss"]
[EventCountry "ROU"]
[SourceTitle "playchess.com"]
[Source "ChessBase"]
[SourceQuality "1"]
[TimeControl "3600+30"]

1. d4 {[%emt 0:00:02]} Nf6 {[%emt 0:00:06]} 2. Nf3 {[%emt 0:00:04]} g6 {[%emt 0:00:12]} 3. Bf4 {[%emt 0:00:17]} Bg7 {[%emt 0:00:53]} 4. h3 {[%emt 0:01:07]} O-O {[%emt 0:01:19]} 5. e3 {[%emt 0:01:59]} d6 {[%emt 0:03:37]} 6. Be2 {[%emt 0:01:24]} Nbd7 {[%emt 0:00:16]} 7. O-O {[%emt 0:00:16]} b6 {[%emt 0:00:09]} 8. c3 {[%emt 0:02:42]} Bb7 {[%emt 0:00:11]} 9. Nbd2 {[%emt 0:01:49]} c5 {[%emt 0:01:19]} 10. Qc2 {[%emt 0:08:40]} Rc8 {[%emt 0:00:39]} 11. a4 {[%emt 0:06:28]} a6 {[%emt 0:01:41]} 12. Rfe1 {[%emt 0:02:54]} Qc7 {[%emt 0:06:50]} 13. Bd3 {[%emt 0:06:52]} Qb8 {[%emt 0:04:23]} 14. Bh2 {[%emt 0:06:29]} Qa8 {[%emt 0:00:10]} 15. Rad1 {[%emt 0:05:49]} Rfe8 {[%emt 0:09:13]} 16. Qb1 {[%emt 0:05:11]} Bc6 {[%emt 0:02:14]} 17. Qc2 {[%emt 0:05:38]} b5 {[%emt 0:23:59]} 18. axb5 {[%emt 0:03:04]} axb5 {[%emt 0:00:06]} 19. Ra1 {[%emt 0:01:38]} Qb7 {[%emt 0:02:08]} 20. e4 {[%emt 0:01:29]} cxd4 {[%emt 0:01:31]} 21. Nxd4 {[%emt 0:00:27]} Nc5 {[%emt 0:02:13]} 22. Nxc6 {[%emt 0:02:42]} Rxc6 {[%emt 0:02:00]} 23. Bf1 {[%emt 0:02:02]} Nfd7 {[%emt 0:00:05]} 24. Ra5 {[%emt 0:01:19]} Rb6 {[%emt 0:01:18]} 25. Rea1 {[%emt 0:01:49]} Bh6 {[%emt 0:03:38]} 26. Ra7 {[%emt 0:01:19]} Qc6 {[%emt 0:00:20]} 27. Re1 {[%emt 0:00:00]} Bxd2 {[%emt 0:02:16]} 28. Qxd2 {[%emt 0:00:03]} Nxe4 {[%emt 0:00:03]} 29. Rxe4 {[%emt 0:00:31]} Qxe4 {[%emt 0:00:01]} 30. Rxd7 {[%emt 0:00:09]} Qa8 {[%emt 0:01:48]} 31. Qe3 {[%emt 0:01:02]} Ra6 {[%emt 0:00:35]} 32. Bxb5 {[%emt 0:00:42]} Ra1+ {[%emt 0:00:03]} 33. Bf1 {[%emt 0:00:07]} Qa6 {[%emt 0:00:11]} 34. Bf4 {[%emt 0:00:50]} Qxf1+ {[%emt 0:00:45]} 35. Kh2 {[%emt 0:00:04]} Qg1+ {[%emt 0:00:23]} 36. Kg3 {[%emt 0:00:04]} Qe1 {[%emt 0:00:08]} 37. Qd3 {[%emt 0:01:15]} Qe6 {[%emt 0:01:05]} 38. Rc7 {[%emt 0:00:37]} Ra4 {[%emt 0:00:49]} 39. b4 {[%emt 0:00:27]} Rc8 {[%emt 0:00:20]} 40. Rxc8+ {[%emt 0:00:36]} Qxc8 {[%emt 0:00:02]} 41. Be3 {[%emt 0:00:30]} Ra3 {[%emt 0:00:08]} 42. Bd2 {[%emt 0:00:22]} Kg7 {[%emt 0:00:58]} 43. Qd4+ {[%emt 0:00:35]} f6 {[%emt 0:00:11]} 44. Qe3 {[%emt 0:00:31]} Kf7 {[%emt 0:00:17]} 45. Qh6 {[%emt 0:00:31]} Kg8 {[%emt 0:00:31]} 46. Qe3 {[%emt 0:00:25]} e5 {[%emt 0:00:53]} 47. Qb6 {[%emt 0:00:35]} Ra6 {[%emt 0:00:45]} 48. Qb5 {[%emt 0:00:24]} Kg7 {[%emt 0:01:03]} 49. c4 {[%emt 0:00:35]} Qc6 {[%emt 0:00:36]} 50. Be3 {[%emt 0:00:32]} Qxb5 {[%emt 0:00:10]} 51. cxb5 {[%emt 0:00:05]} Ra4 {[%emt 0:00:03]} 52. Bd2 {[%emt 0:00:12]} d5 {[%emt 0:00:32]} 53. Kf3 {[%emt 0:00:14]} Ra8 {[%emt 0:00:23]} 54. Ke3 {[%emt 0:00:19]} Rb8 {[%emt 0:00:06]} 55. Kd3 {[%emt 0:00:09]} Rxb5 {[%emt 0:00:02]} 56. Kc3 {[%emt 0:00:06]} Kf7 {[%emt 0:00:07]} 57. Kb3 {[%emt 0:00:04]} Ke6 {[%emt 0:00:11]} 58. Ka4 {[%emt 0:00:04]} Rb8 {[%emt 0:00:03]} 59. b5 {[%emt 0:00:07]} d4 {[%emt 0:00:57]} 60. Ka5 {[%emt 0:00:06]} Kd5 {[%emt 0:00:06]} 61. Bb4 {[%emt 0:00:24]} Kc4 {[%emt 0:00:32]} 62. Be7 {[%emt 0:00:22]} Rxb5+ {[%emt 0:00:06]} 63. Ka6 {[%emt 0:00:18]} d3 {[%emt 0:00:05]} 0-1

[Event "Romanian Amateur Championship 2024"]
[Site "Eforie Nord"]
[Date "2024.02.27"]
[Round "2.1"]
[White "Zubcu, Vlad-George"]
[Black "Anghelescu, Teodor-Stefan"]
[Result "1/2-1/2"]
[ECO "D03"]
[WhiteElo "2166"]
[BlackElo "1718"]
[Annotator "RC"]
[PlyCount "81"]
[EventDate "2024.02.26"]
[EventType "swiss"]
[EventCountry "ROU"]
[SourceTitle "playchess.com"]
[Source "ChessBase"]
[SourceQuality "1"]
[TimeControl "3600+30"]

1. d4 {[%emt 0:00:02]} Nf6 {[%emt 0:00:06]} 2. Nf3 {[%emt 0:00:07]} d5 {[%emt 0:00:10]} 3. Bg5 {[%emt 0:00:11]} c6 {[%emt 0:00:46]} 4. Nbd2 {[%emt 0:00:26]} Qb6 {[%emt 0:04:18]} 5. Rb1 {[%emt 0:06:28]} Bf5 {[%emt 0:10:55]} 6. Nh4 {[%emt 0:02:21]} Ne4 {[%emt 0:00:20]} 7. Nxe4 {[%emt 0:03:05]} Bxe4 {[%emt 0:00:05]} 8. f3 {[%emt 0:01:58]} h6 {[%emt 0:04:03]} 9. Be3 {[%emt 0:06:27]} Bh7 {[%emt 0:00:35]} 10. g3 {[%emt 0:01:20]} Nd7 {[%emt 0:05:12]} 11. Bh3 {[%emt 0:01:07]} e6 {[%emt 0:01:35]} 12. O-O {[%emt 0:01:10]} Be7 {[%emt 0:03:22]} 13. Ng2 {[%emt 0:00:41]} O-O {[%emt 0:00:56]} 14. Nf4 {[%emt 0:00:49]} Nf6 {[%emt 0:03:03]} 15. Nd3 {[%emt 0:00:52]} Bxd3 {[%emt 0:03:35]} 16. Qxd3 {[%emt 0:00:02]} c5 {[%emt 0:02:16]} 17. c3 {[%emt 0:00:02]} cxd4 {[%emt 0:01:24]} 18. cxd4 {[%emt 0:03:21]} Rfc8 {[%emt 0:01:20]} 19. Bd2 {[%emt 0:02:01]} Rc4 {[%emt 0:01:32]} 20. e3 {[%emt 0:00:18]} Rac8 {[%emt 0:00:55]} 21. Rfd1 {[%emt 0:00:48]} Ne8 {[%emt 0:03:51]} 22. Bf1 {[%emt 0:00:38]} Bf6 {[%emt 0:04:38]} 23. Qb3 {[%emt 0:03:21]} Qxb3 {[%emt 0:02:15]} 24. axb3 {[%emt 0:00:02]} R4c7 {[%emt 0:00:08]} 25. Ra1 {[%emt 0:01:43]} a6 {[%emt 0:00:59]} 26. Bd3 {[%emt 0:00:51]} Nd6 {[%emt 0:00:24]} 27. Kf2 {[%emt 0:00:30]} Rc6 {[%emt 0:01:31]} 28. Rdc1 {[%emt 0:01:44]} Rxc1 {[%emt 0:01:40]} 29. Bxc1 {[%emt 0:00:38]} Kf8 {[%emt 0:00:42]} 30. Bd2 {[%emt 0:00:29]} Ke7 {[%emt 0:00:08]} 31. Bc3 {[%emt 0:00:40]} g6 {[%emt 0:03:37]} 32. e4 {[%emt 0:32:18]} dxe4 {[%emt 0:00:58]} 33. fxe4 {[%emt 0:00:00]} Bg7 34. Ke3 {[%emt 0:01:00]} Kd7 {[%emt 0:00:56]} 35. Rf1 {[%emt 0:00:00]} f5 {[%emt 0:00:35]} 36. g4 {[%emt 0:00:00]} fxg4 {[%emt 0:01:23]} 37. Bb4 {[%emt 0:00:00]} Rf8 {[%emt 0:02:03]} 38. Rxf8 {[%emt 0:00:00]} Bxf8 {[%emt 0:00:01]} 39. Kf4 {[%emt 0:00:00]} h5 {[%emt 0:01:07]} 40. Bxd6 {[%emt 0:00:00]} Bh6+ {[%emt 0:00:31]} 41. Ke5 {[%emt 0:00:00]} 1/2-1/2

[Event "Romanian Amateur Championship 2024"]
[Site "Eforie Nord"]
[Date "2024.02.27"]
[Round "2.2"]
[White "Gulias, Alin-Constantin"]
[Black "Tudoroiu, Razvan-Catalin"]
[Result "0-1"]
[ECO "B27"]
[WhiteElo "1684"]
[BlackElo "2031"]
[Annotator "RC"]
[PlyCount "49"]
[EventDate "2024.02.26"]
[EventType "swiss"]
[EventCountry "ROU"]
[SourceTitle "playchess.com"]
[Source "ChessBase"]
[SourceQuality "1"]
[TimeControl "3600+30"]

1. e4 {[%emt 0:00:03]} c5 {[%emt 0:01:05]} 2. Nf3 {[%emt 0:01:25]} Nc6 {[%emt 0:00:08]} 3. Bc4 {[%emt 0:00:42]} g6 {[%emt 0:00:28]} 4. O-O {[%emt 0:00:16]} Bg7 {[%emt 0:00:06]} 5. c3 {[%emt 0:00:46]} d6 {[%emt 0:02:33]} 6. d3 {[%emt 0:01:47]} Rb8 {[%emt 0:00:59]} 7. a4 {[%emt 0:00:33]} Nf6 {[%emt 0:00:45]} 8. Bf4 {[%emt 0:01:58]} O-O {[%emt 0:01:32]} 9. Qd2 {[%emt 0:01:07]} Bg4 {[%emt 0:05:49]} 10. Na3 {[%emt 0:10:33]} Bxf3 {[%emt 0:08:43]} 11. gxf3 {[%emt 0:00:03]} Ne5 {[%emt 0:00:10]} 12. Kg2 {[%emt 0:00:54]} Nh5 {[%emt 0:01:56]} 13. Bg3 {[%emt 0:01:54]} Nxc4 {[%emt 0:03:04]} 14. Nxc4 {[%emt 0:00:33]} Qd7 {[%emt 0:00:57]} 15. Ne3 {[%emt 0:18:49]} b5 {[%emt 0:09:23]} 16. axb5 {[%emt 0:01:04]} Rxb5 {[%emt 0:00:03]} 17. Ra2 {[%emt 0:00:20]} Rfb8 {[%emt 0:01:25]} 18. Rfa1 {[%emt 0:00:21]} R5b7 {[%emt 0:00:37]} 19. Nc4 {[%emt 0:00:48]} Nxg3 {[%emt 0:01:33]} 20. hxg3 {[%emt 0:00:55]} e6 {[%emt 0:00:22]} 21. Na5 {[%emt 0:06:07]} Rc7 {[%emt 0:01:15]} 22. f4 {[%emt 0:00:17]} e5 {[%emt 0:04:02]} 23. Rb1 {[%emt 0:02:52]} d5 {[%emt 0:01:24]} 24. b4 {[%emt 0:01:40]} dxe4 {[%emt 0:00:45]} 25. bxc5 {[%emt 0:06:55]} 0-1

[Event "Romanian Amateur Championship 2024"]
[Site "Eforie Nord"]
[Date "2024.02.27"]
[Round "2.3"]
[White "Barbu, Simon-Alexandru"]
[Black "Salcu, Laurentiu"]
[Result "1-0"]
[ECO "B23"]
[WhiteElo "2030"]
[BlackElo "1701"]
[Annotator "RC"]
[PlyCount "119"]
[EventDate "2024.02.26"]
[EventType "swiss"]
[EventCountry "ROU"]
[SourceTitle "playchess.com"]
[Source "ChessBase"]
[SourceQuality "1"]
[TimeControl "3600+30"]

1. e4 {[%emt 0:00:04]} c5 {[%emt 0:00:07]} 2. Nc3 {[%emt 0:00:11]} Nc6 {[%emt 0:00:18]} 3. Bb5 {[%emt 0:00:30]} Nf6 {[%emt 0:03:12]} 4. Bxc6 {[%emt 0:02:37]} bxc6 {[%emt 0:00:11]} 5. f4 {[%emt 0:00:15]} e6 {[%emt 0:03:56]} 6. Nf3 {[%emt 0:01:58]} d5 {[%emt 0:01:24]} 7. e5 {[%emt 0:13:50]} Nd7 {[%emt 0:03:47]} 8. O-O {[%emt 0:00:07]} Be7 {[%emt 0:00:57]} 9. d3 {[%emt 0:01:28]} O-O {[%emt 0:00:22]} 10. b3 {[%emt 0:03:56]} Nb6 {[%emt 0:01:18]} 11. Ba3 {[%emt 0:03:48]} a5 {[%emt 0:00:59]} 12. Ne2 {[%emt 0:05:45]} c4 {[%emt 0:08:13]} 13. Bxe7 {[%emt 0:00:16]} Qxe7 {[%emt 0:00:09]} 14. dxc4 {[%emt 0:03:40]} dxc4 {[%emt 0:03:39]} 15. Ng5 {[%emt 0:03:55]} Nd5 {[%emt 0:02:58]} 16. Qd4 {[%emt 0:02:18]} Qa7 {[%emt 0:11:22]} 17. bxc4 {[%emt 0:14:22]} Ne3 {[%emt 0:02:38]} 18. Rf3 {[%emt 0:01:09]} Nxc4 {[%emt 0:08:37]} 19. Rc3 {[%emt 0:00:03]} Ba6 {[%emt 0:01:01]} 20. Kh1 {[%emt 0:00:15]} Qxd4 {[%emt 0:03:24]} 21. Nxd4 {[%emt 0:00:03]} Rfd8 {[%emt 0:02:47]} 22. Nxc6 {[%emt 0:08:00]} Rd7 {[%emt 0:00:48]} 23. Rd3 {[%emt 0:02:11]} Rxd3 {[%emt 0:00:50]} 24. cxd3 {[%emt 0:00:00]} Ne3 {[%emt 0:00:38]} 25. Nxa5 {[%emt 0:00:46]} Bxd3 {[%emt 0:00:36]} 26. Nb3 {[%emt 0:01:00]} Bc4 {[%emt 0:01:45]} 27. Nc1 {[%emt 0:00:10]} Bd5 {[%emt 0:00:20]} 28. Nf3 {[%emt 0:00:47]} Rb8 {[%emt 0:00:30]} 29. Nd3 {[%emt 0:00:49]} Bc4 {[%emt 0:02:25]} 30. Nde1 {[%emt 0:00:25]} Nd5 {[%emt 0:00:59]} 31. g3 {[%emt 0:00:41]} Ne3 {[%emt 0:02:20]} 32. a4 {[%emt 0:00:15]} h6 {[%emt 0:00:31]} 33. a5 {[%emt 0:00:22]} Bd5 {[%emt 0:00:12]} 34. Kg1 {[%emt 0:00:31]} Ra8 {[%emt 0:01:20]} 35. Kf2 {[%emt 0:00:40]} Nc4 {[%emt 0:00:29]} 36. a6 {[%emt 0:00:01]} Nb6 {[%emt 0:00:31]} 37. Nd3 {[%emt 0:00:28]} Ra7 {[%emt 0:00:54]} 38. Nd4 {[%emt 0:00:37]} Na8 {[%emt 0:02:04]} 39. Nb5 {[%emt 0:00:48]} Re7 {[%emt 0:00:32]} 40. Nc5 {[%emt 0:00:38]} Kf8 {[%emt 0:00:42]} 41. Ke3 {[%emt 0:00:13]} Bc6 {[%emt 0:00:08]} 42. Nd6 {[%emt 0:00:16]} Ra7 {[%emt 0:00:11]} 43. Rb1 {[%emt 0:00:29]} g6 {[%emt 0:01:01]} 44. Rb8+ {[%emt 0:00:11]} Kg7 {[%emt 0:00:09]} 45. Kd4 {[%emt 0:01:25]} Nc7 {[%emt 0:00:14]} 46. Rb6 {[%emt 0:00:34]} Bd5 {[%emt 0:00:56]} 47. Rb7 {[%emt 0:00:26]} Rxb7 {[%emt 0:00:33]} 48. axb7 {[%emt 0:00:06]} Bxb7 {[%emt 0:00:04]} 49. Ncxb7 {[%emt 0:00:13]} Nd5 {[%emt 0:00:07]} 50. Nc5 {[%emt 0:00:15]} Ne7 {[%emt 0:00:21]} 51. Ne8+ {[%emt 0:00:13]} Kf8 {[%emt 0:00:16]} 52. Nf6 {[%emt 0:00:04]} Kg7 {[%emt 0:00:17]} 53. Nce4 {[%emt 0:00:38]} Nf5+ {[%emt 0:00:13]} 54. Kc5 {[%emt 0:00:04]} Ne3 {[%emt 0:00:23]} 55. Kd6 {[%emt 0:00:45]} Nf5+ {[%emt 0:00:09]} 56. Kd7 {[%emt 0:00:04]} Ne3 {[%emt 0:01:28]} 57. Ke7 {[%emt 0:00:21]} g5 {[%emt 0:00:41]} 58. fxg5 {[%emt 0:00:34]} hxg5 {[%emt 0:00:12]} 59. Nxg5 {[%emt 0:00:07]} Nf1 {[%emt 0:00:39]} 60. Ng4 {[%emt 0:00:03]} 1-0